fUSD/lending_fUSD_20260213
["ID","MTS","AMOUNT","RATE_DAILY","PERIOD"]
[405300615,1770970242732,-500.0,0.00013698,2]
[405300616,1770970242741,-691.13,0.00013698,2]
[405300617,1770970242751,-500.0,0.00013698,2]
[405300618,1770970242761,-691.13,0.00013698,2]
[405300619,1770970242771,-500.0,0.00013698,2]
[405300620,1770970242780,-691.13,0.00013698,2]
[405300621,1770970242792,-407.86865635,0.00013698,2]
[405300622,1770970242802,-500.0,0.00013698,2]
[405300623,1770970242813,-500.0,0.00013698,2]
[405300624,1770970242823,-500.0,0.00013698,2]
[405300625,1770970242833,-500.0,0.00013698,2]
[405300626,1770970242842,-500.0,0.00013698,2]
[405300627,1770970242852,-500.0,0.00013698,2]
[405300628,1770970242862,-500.0,0.00013698,2]
[405300629,1770970242871,-500.0,0.00013698,2]
[405300630,1770970242882,-500.0,0.00013698,2]
[405300631,1770970242892,-500.0,0.00013698,2]
[405300632,1770970242901,-500.0,0.00013698,2]
[405300633,1770970242915,-500.0,0.00013698,2]
[405300634,1770970242926,-500.0,0.00013698,2]
[405300635,1770970242937,-500.0,0.00013698,2]
[405300636,1770970242949,-500.0,0.00013698,2]
[405300637,1770970242959,-505.53791634,0.00013698,2]
[405300638,1770970242970,-500.0,0.00013698,2]
[405300639,1770970242982,-500.0,0.00013698,2]
[405300640,1770970242991,-500.0,0.00013698,2]
[405300641,1770970243001,-500.0,0.00013698,2]
[405300642,1770970243011,-500.0,0.00013698,2]
[405300643,1770970243020,-500.0,0.00013698,2]
[405300644,1770970243030,-500.0,0.00013698,2]
[405300645,1770970243040,-500.0,0.00013698,2]
[405300646,1770970243049,-500.0,0.00013698,2]
[405300647,1770970243059,-500.0,0.00013698,2]
[405300648,1770970243072,-500.0,0.00013698,2]
[405300649,1770970243082,-500.0,0.00013698,2]
[405300650,1770970243092,-500.0,0.00013698,2]
[405300651,1770970243101,-500.0,0.00013698,2]
[405300652,1770970243110,-500.0,0.00013698,2]
[405300653,1770970243119,-500.0,0.00013698,2]
[405300654,1770970243129,-500.0,0.00013698,2]
[405300655,1770970243138,-500.0,0.00013698,2]
[405300656,1770970243147,-500.0,0.00013698,2]
[405300657,1770970243156,-500.0,0.00013698,2]
[405300658,1770970243166,-500.0,0.00013698,2]
[405300659,1770970243175,-500.0,0.00013698,2]
[405300660,1770970243184,-500.0,0.00013698,2]
[405300661,1770970243193,-500.0,0.00013698,2]
[405300662,1770970243203,-500.0,0.00013698,2]
[405300663,1770970243212,-500.0,0.00013698,2]
[405300664,1770970243221,-500.0,0.00013698,2]
[405300665,1770970243230,-500.0,0.00013698,2]
[405300666,1770970243240,-529.45,0.00013698,2]
[405300667,1770970243251,-529.45,0.00013698,2]
[405300668,1770970243260,-529.45,0.00013698,2]
[405300669,1770970243270,-529.45,0.00013698,2]
[405300670,1770970243280,-529.45,0.00013698,2]
[405300671,1770970243291,-529.45,0.00013698,2]
[405300672,1770970243302,-529.45,0.00013698,2]
[405300673,1770970243312,-529.45,0.00013698,2]
[405300674,1770970243322,-529.45,0.00013698,2]
[405300675,1770970243332,-529.45,0.00013698,2]
[405300676,1770970243342,-529.45,0.00013698,2]
[405300677,1770970243353,-529.45,0.00013698,2]
[405300678,1770970243363,-529.45,0.00013698,2]
[405300680,1770970243372,-529.45,0.00013698,2]
[405300682,1770970243382,-1438.79,0.00013698,2]
[405300684,1770970243392,-1438.79,0.00013698,2]
[405300685,1770970243402,-1438.79,0.00013698,2]
[405300686,1770970243412,-1438.79,0.00013698,2]
[405300687,1770970243422,-1438.79,0.00013698,2]
[405300688,1770970243432,-1438.79,0.00013698,2]
[405300690,1770970243441,-1438.79,0.00013698,2]
[405300691,1770970243452,-1438.79,0.00013698,2]
[405300692,1770970243461,-1438.79,0.00013698,2]
[405300693,1770970243471,-1438.79,0.00013698,2]
[405300695,1770970243481,-1438.79,0.00013698,2]
[405300697,1770970243491,-1438.79,0.00013698,2]
[405300698,1770970243501,-1438.79,0.00013698,2]
[405300699,1770970243510,-1438.79,0.00013698,2]
[405300700,1770970243519,-500.0,0.00013698,2]
[405300701,1770970243528,-500.0,0.00013698,3]
[405300702,1770970243538,-616.8,0.00013698,2]
[405300703,1770970243547,-500.0,0.00013698,4]
[405300704,1770970243557,-616.8,0.00013698,2]
[405300705,1770970243566,-500.0,0.00013698,5]
[405300706,1770970243575,-616.8,0.00013698,2]
[405300707,1770970243585,-500.0,0.00013698,6]
[405300708,1770970243594,-616.8,0.00013698,2]
[405300709,1770970243603,-500.0,0.00013698,7]
[405300710,1770970243612,-616.8,0.00013698,2]
[405300711,1770970243621,-616.8,0.00013698,2]
[405300712,1770970243631,-500.0,0.00013698,8]
[405300713,1770970243640,-616.8,0.00013698,2]
[405300714,1770970243649,-500.0,0.00013698,9]
[405300715,1770970243659,-616.8,0.00013698,2]
[405300716,1770970243668,-177.3744834,0.00013698,10]
[405300717,1770970243677,-616.8,0.00013698,2]
[405300718,1770970243687,-500.0,0.00013698,2]
[405300719,1770970243697,-616.8,0.00013698,2]
[405300720,1770970243706,-500.0,0.00013698,2]
[405300721,1770970243716,-616.8,0.00013698,2]
[405300722,1770970243725,-500.0,0.00013698,2]
[405300723,1770970243735,-616.8,0.00013698,2]
[405300724,1770970243744,-616.8,0.00013698,2]
[405300725,1770970243754,-500.0,0.00013698,2]
[405300726,1770970243764,-616.8,0.00013698,2]
[405300727,1770970243774,-500.0,0.00013698,2]
[405300728,1770970243784,-616.8,0.00013698,2]
[405300729,1770970243793,-500.0,0.00013698,2]
[405300730,1770970243802,-616.8,0.00013698,2]
[405300731,1770970243812,-500.0,0.00013698,2]
[405300732,1770970243821,-616.8,0.00013698,2]
[405300733,1770970243834,-430.95470034,0.00013698,2]
[405300734,1770970243844,-616.8,0.00013698,2]
[405300735,1770970243854,-616.8,0.00013698,2]
[405300736,1770970243863,-500.0,0.00013698,2]
[405300737,1770970243873,-500.0,0.00013698,2]
[405300738,1770970243883,-500.0,0.00013698,2]
[405300739,1770970243893,-500.0,0.00013698,2]
[405300740,1770970243904,-500.0,0.00013698,2]
[405300741,1770970243915,-500.0,0.00013698,2]
[405300742,1770970243925,-500.0,0.00013698,2]
[405300743,1770970243935,-500.0,0.00013698,2]
[405300744,1770970243945,-500.0,0.00013698,2]
[405300745,1770970243954,-500.0,0.00013698,2]
[405300746,1770970243964,-500.0,0.00013698,2]
[405300747,1770970243974,-500.0,0.00013698,2]
[405300748,1770970243985,-520.21256927,0.00013698,2]
[405300749,1770970243995,-500.0,0.00013698,2]
[405300750,1770970244006,-500.0,0.00013698,2]
[405300751,1770970244015,-500.0,0.00013698,2]
[405300752,1770970244025,-500.0,0.00013698,2]
[405300753,1770970244034,-500.0,0.00013698,2]
[405300754,1770970244126,-500.0,0.00013698,2]
[405300755,1770970244137,-500.0,0.00013698,2]
[405300756,1770970244147,-500.0,0.00013698,2]
[405300757,1770970244157,-500.0,0.00013698,2]
[405300758,1770970244167,-500.0,0.00013698,2]
[405300759,1770970244176,-500.0,0.00013698,2]
[405300760,1770970244186,-500.0,0.00013698,2]
[405300761,1770970244196,-500.0,0.00013698,2]
[405300762,1770970244207,-500.0,0.00013698,2]
[405300763,1770970244219,-500.0,0.00013698,2]
[405300764,1770970244229,-500.0,0.00013698,2]
[405300765,1770970244238,-570.74622544,0.00013698,2]
[405300766,1770970244247,-315.64,0.00013699,2]
[405300767,1770970244257,-4303.98,0.00013699,2]
[405300768,1770970244268,-263.03,0.00013699,2]
[405300769,1770970244278,-219.2,0.00013699,2]
[405300770,1770970244287,-182.66,0.00013699,2]
[405300771,1770970244297,-152.22,0.00013699,2]
[405300772,1770970244306,-761.12,0.00013699,2]
[405300773,1770970244316,-150.0,0.00013699,2]
[405300774,1770970244326,-203.44119,0.00013754,2]
[405300775,1770970244335,-248.43,0.00013791,2]
[405300776,1770970244345,-290.43,0.00013837,2]
[405300777,1770970244354,-565.0,0.00013865,2]
[405300778,1770970244363,-1000.0,0.00013881,2]
[405300779,1770970244373,-209.81,0.00013907,2]
[405300780,1770970244383,-12649.0,0.00013957,2]
[405300781,1770970244392,-537.0,0.00013979,2]
[405300782,1770970244402,-581.0,0.00013999,2]
[405300783,1770970244413,-500.0,0.00013999,2]
[405300784,1770970244422,-866.73,0.00013999,2]
[405300785,1770970244432,-500.0,0.00013999,2]
[405300786,1770970244442,-153.0,0.00014,2]
[405300787,1770970244452,-153.0,0.00014,2]
[405300788,1770970244461,-153.0,0.00014,2]
[405300789,1770970244471,-153.0,0.00014,2]
[405300790,1770970244480,-153.0,0.00014,2]
[405300791,1770970244490,-153.0,0.00014,2]
[405300792,1770970244502,-153.0,0.00014,2]
[405300793,1770970244512,-253.56791203,0.00014,2]
[405300794,1770970244522,-2927.298385,0.00014001,7]
[405300795,1770970244531,-5968.0,0.00014021,2]
[405300796,1770970244540,-2450.0,0.00014021,2]
[405300797,1770970244549,-371.36,0.00014152,2]
[405300798,1770970244558,-243.04,0.00014202,2]
[405300799,1770970244568,-1001.53079638,0.00014221,2]
[405300800,1770970244580,-744.95097778,0.00014221,2]
[405300801,1770970244590,-623.71743587,0.00014221,2]
[405300802,1770970244599,-228.27051733,0.00014221,2]
[405300803,1770970244609,-501.77969329,0.00014221,2]
[405300804,1770970244618,-1000.0,0.00014221,2]
[405300805,1770970244628,-1000.0,0.00014221,2]
[405300806,1770970244637,-1000.0,0.00014221,2]
[405300807,1770970244646,-1000.0,0.00014221,2]
[405300808,1770970244657,-1000.0,0.00014221,2]
[405300809,1770970244667,-159.57503303,0.00014221,2]
[405300810,1770970244677,-1000.0,0.00014221,2]
[405300811,1770970244686,-876.63664137,0.00014221,2]
[405300812,1770970244698,-1000.0,0.00014221,2]
[405300813,1770970244707,-1000.0,0.00014221,2]
[405300814,1770970244717,-42929.0,0.000143,2]
[405300815,1770970244727,-45698.0920966,0.00014315,2]
[405300816,1770970244738,-4303.98,0.00014384,2]
[405300817,1770970244747,-646.0,0.00014388,2]
[405300818,1770970244757,-646.0,0.00014392,2]
[405300819,1770970244766,-150.0,0.00014394,2]
[405300820,1770970244775,-150.0,0.00014394,2]
[405300821,1770970244786,-150.0,0.00014394,2]
[405300822,1770970244797,-150.0,0.00014394,2]
[405300823,1770970244807,-1337.0,0.00014394,2]
[405300824,1770970244816,-3488.0,0.00014394,2]
[405300825,1770970244825,-1288.0,0.00014394,2]
[405300826,1770970244834,-1274.0,0.00014394,2]
[405300827,1770970244845,-150.0,0.00014394,2]
[405300828,1770970244855,-918.0,0.00014394,2]
[405300829,1770970244864,-1208.0,0.00014394,2]
[405300830,1770970244873,-646.0,0.00014395,2]
[405300831,1770970244883,-646.0,0.0001442,2]
[405300832,1770970244894,-616.8,0.00014516,2]
[405300833,1770970244907,-616.8,0.00014516,2]
[405300834,1770970244917,-616.8,0.00014516,2]
[405300835,1770970244927,-616.8,0.00014516,2]
[405300836,1770970244936,-616.90997361,0.00014516,2]
[405300837,1770970244946,-5531.0,0.000146,3]
[405300838,1770970244955,-151.0,0.00014634,2]
[405300839,1770970244965,-646.0,0.00014666,2]
[405300840,1770970244975,-339.0,0.00014686,2]
[405300841,1770970244986,-646.0,0.00014687,2]
[405300842,1770970244996,-4508.175656,0.00014757,7]
[405300843,1770970245006,-1500.0,0.00014768,2]
[405300844,1770970245015,-1500.0,0.00014768,2]
[405300845,1770970245025,-620.59812274,0.00014768,2]
[405300846,1770970245034,-1500.0,0.00014768,2]
[405300847,1770970245043,-1500.0,0.00014768,2]
[405300848,1770970245053,-884.25817303,0.00014768,2]
[405300849,1770970245063,-1500.0,0.00014768,2]
[405300850,1770970245072,-1500.0,0.00014768,2]
[405300851,1770970245081,-646.0,0.00014809,2]
[405300852,1770970245091,-6155.6818511,0.00014843,2]
[405300853,1770970245100,-165.60785662,0.00014893,2]
[405300854,1770970245109,-302.0,0.000149,2]
[405300855,1770970245119,-308.0,0.000149,2]
[405300856,1770970245128,-5531.0,0.000149,5]
[405300857,1770970245138,-646.0,0.00014917,2]
[405300858,1770970245147,-646.0,0.00014927,2]
[405300859,1770970245157,-646.0,0.00014945,2]
[405300860,1770970245166,-646.0,0.0001497,2]
[405300861,1770970245176,-646.0,0.00014975,2]
[405300862,1770970245186,-250.0,0.00015,2]
[405300863,1770970245196,-646.0,0.00015041,2]
[405300864,1770970245205,-646.0,0.00015065,2]
[405300865,1770970245215,-4303.98,0.00015068,2]
[405300866,1770970245224,-646.0,0.00015081,2]
[405300867,1770970245234,-175.92,0.00015107,2]
[405300868,1770970245243,-1000.0,0.00015143,2]
[405300869,1770970245254,-646.0,0.00015253,2]
[405300870,1770970245264,-1876.473327,0.00015257,7]
[405300871,1770970245274,-2889.856194,0.00015257,7]
[405300872,1770970245283,-1000.0,0.0001526,7]
[405300873,1770970245293,-2000.0,0.00015316,2]
[405300874,1770970245302,-2003.71008588,0.00015316,2]
[405300875,1770970245311,-2000.0,0.00015316,2]
[405300876,1770970245321,-2000.0,0.00015316,2]
[405300877,1770970245330,-2000.0,0.00015316,2]
[405300878,1770970245343,-1518.13687816,0.00015316,2]
[405300879,1770970245353,-6670.0,0.00015353,2]
[405300880,1770970245362,-646.0,0.00015364,2]
[405300881,1770970245371,-646.0,0.00015371,2]
[405300882,1770970245381,-646.0,0.00015371,2]
[405300883,1770970245390,-646.0,0.00015402,2]
[405300884,1770970245400,-646.0,0.00015416,2]
[405300885,1770970245409,-226.0,0.00015508,2]
[405300886,1770970245418,-45698.0920966,0.0001551,2]
[405300887,1770970245428,-150.0,0.00015564,2]
[405300888,1770970245438,-722.32,0.00015608,2]
[405300889,1770970245448,-591.31,0.00015608,2]
[405300890,1770970245457,-1197.3,0.00015608,2]
[405300891,1770970245467,-606.16370174,0.00015608,2]
[405300892,1770970245476,-1137.19,0.00015608,2]
[405300893,1770970245485,-1410.82,0.00015608,2]
[405300894,1770970245496,-891.17,0.00015608,2]
[405300895,1770970245506,-500.0,0.00015608,2]
[405300896,1770970245515,-500.0,0.00015608,2]
[405300897,1770970245524,-691.13,0.00015608,2]
[405300898,1770970245534,-500.0,0.00015608,2]
[405300899,1770970245543,-500.0,0.00015608,2]
[405300900,1770970245552,-500.0,0.00015608,2]
[405300901,1770970245562,-529.45,0.00015608,2]
[405300902,1770970245571,-1438.79,0.00015608,2]
[405300903,1770970245581,-500.0,0.00015608,2]
[405300904,1770970245590,-646.0,0.00015681,2]
[405300905,1770970245600,-4303.98,0.00015753,2]
[405300906,1770970245609,-900.0,0.00015761,2]
[405300907,1770970245619,-646.0,0.00015815,2]
[405300908,1770970245628,-646.0,0.00015822,2]
[405300909,1770970245637,-581.0,0.00015864,2]
[405300910,1770970245646,-500.0,0.00015864,2]
[405300911,1770970245656,-866.73,0.00015864,2]
[405300912,1770970245666,-500.0,0.00015864,2]
[405300913,1770970245676,-2500.0,0.00015864,2]
[405300914,1770970245685,-464.93718194,0.00015864,2]
[405300915,1770970245695,-2500.0,0.00015864,2]
[405300916,1770970245707,-2500.0,0.00015864,2]
[405300917,1770970245716,-646.0,0.00015894,2]
[405300918,1770970245726,-248.43,0.00015895,2]
[405300919,1770970245735,-262.74959238,0.00016,2]
[405300920,1770970245744,-9999.99,0.00016116,2]
[405300921,1770970245755,-371.36,0.00016117,2]
[405300922,1770970245765,-243.04,0.00016142,2]
[405300923,1770970245775,-500.0,0.00016173,2]
[405300924,1770970245784,-502.22718587,0.00016173,2]
[405300925,1770970245793,-500.0,0.00016173,2]
[405300926,1770970245802,-500.0,0.00016173,2]
[405300927,1770970245811,-501.86536618,0.00016173,2]
[405300928,1770970245820,-500.0,0.00016173,2]
[405300929,1770970245830,-560.82560614,0.00016173,2]
[405300930,1770970245839,-504.64635869,0.00016173,2]
[405300931,1770970245847,-500.0,0.00016173,2]
[405300932,1770970245857,-500.0,0.00016173,2]
[405300933,1770970245866,-523.38790063,0.00016173,2]
[405300934,1770970245875,-500.0,0.00016173,2]
[405300935,1770970245884,-500.71447889,0.00016173,2]
[405300936,1770970245894,-500.0,0.00016173,2]
[405300937,1770970245906,-500.0,0.00016173,2]
[405300938,1770970245916,-500.0,0.00016173,2]
[405300939,1770970245925,-500.0,0.00016173,2]
[405300940,1770970245934,-163.79829238,0.00016173,2]
[405300941,1770970245943,-500.0,0.00016173,2]
[405300942,1770970245954,-500.0,0.00016173,2]
[405300943,1770970245963,-500.0,0.00016173,2]
[405300944,1770970245972,-161.87999036,0.00016173,2]
[405300946,1770970245981,-160.36449504,0.00016173,2]
[405300948,1770970245990,-160.21755822,0.00016173,2]
[405300949,1770970246000,-160.37994263,0.00016173,2]
[405300950,1770970246009,-514.01890728,0.00016173,2]
[405300951,1770970246019,-500.9662317,0.00016173,2]
[405300952,1770970246028,-500.0,0.00016173,2]
[405300953,1770970246037,-500.0,0.00016173,2]
[405300954,1770970246047,-500.0,0.00016173,2]
[405300955,1770970246056,-502.68727614,0.00016173,2]
[405300956,1770970246065,-161.79452936,0.00016173,2]
[405300957,1770970246074,-500.0,0.00016173,2]
[405300958,1770970246083,-500.0,0.00016173,2]
[405300959,1770970246092,-502.51804704,0.00016173,2]
[405300960,1770970246101,-502.15975128,0.00016173,2]
[405300961,1770970246114,-502.97943379,0.00016173,2]
[405300962,1770970246125,-501.45759007,0.00016173,2]
[405300963,1770970246135,-500.0,0.00016173,2]
[405300964,1770970246145,-500.0,0.00016173,2]
[405300965,1770970246154,-500.0,0.00016173,2]
[405300966,1770970246164,-170.11819774,0.00016173,2]
[405300967,1770970246175,-500.0,0.00016173,2]
[405300968,1770970246184,-160.94815484,0.00016173,2]
[405300969,1770970246194,-501.3619325,0.00016173,2]
[405300970,1770970246203,-500.2976467,0.00016173,2]
[405300971,1770970246213,-501.58203416,0.00016173,2]
[405300972,1770970246223,-185.89561959,0.00016173,2]
[405300973,1770970246233,-515.01775442,0.00016173,2]
[405300974,1770970246243,-500.0,0.00016173,2]
[405300975,1770970246253,-501.43225284,0.00016173,2]
[405300976,1770970246263,-502.19144645,0.00016173,2]
[405300977,1770970246273,-500.0,0.00016173,2]
[405300978,1770970246284,-567.62074081,0.00016173,2]
[405300979,1770970246294,-500.0,0.00016173,2]
[405300980,1770970246303,-500.0,0.00016173,2]
[405300981,1770970246313,-6155.6818511,0.00016371,2]
[405300982,1770970246324,-2694.92260426,0.00016412,2]
[405300983,1770970246334,-266.54635509,0.00016412,2]
[405300984,1770970246344,-3000.0,0.00016412,2]
[405300985,1770970246354,-151.02975848,0.00016438,2]
[405300986,1770970246364,-4303.98,0.00016438,2]
[405300987,1770970246374,-160.10510946,0.00016443,2]
[405300988,1770970246384,-45698.0920966,0.00016705,2]
[405300989,1770970246394,-199.17,0.00016712,2]
[405300990,1770970246403,-300.0,0.0001672,2]
[405300991,1770970246414,-460.18108091,0.00016721,2]
[405300992,1770970246425,-1000.0,0.00016721,2]
[405300993,1770970246434,-1000.0,0.00016721,2]
[405300994,1770970246445,-651.60051968,0.00016721,2]
[405300995,1770970246454,-502.01410517,0.00016721,2]
[405300996,1770970246464,-1000.0,0.00016721,2]
[405300997,1770970246474,-1000.0,0.00016721,2]
[405300998,1770970246485,-1000.0,0.00016721,2]
[405300999,1770970246495,-516.39838794,0.00016721,2]
[405301000,1770970246507,-1000.0,0.00016721,2]
[405301001,1770970246516,-1000.0,0.00016721,2]
[405301002,1770970246526,-1095.58692037,0.00016721,2]
[405301003,1770970246536,-1000.0,0.00016721,2]
[405301004,1770970246546,-1000.0,0.00016721,2]
[405301005,1770970246556,-1000.0,0.00016721,2]
[405301006,1770970246566,-1000.0,0.00016721,2]
[405301007,1770970246576,-1002.86775924,0.00016721,2]
[405301008,1770970246586,-1000.0,0.00016721,2]
[405301009,1770970246596,-1002.46426974,0.00016721,2]
[405301010,1770970246606,-1000.0,0.00016721,2]
[405301011,1770970246616,-1000.0,0.00016721,2]
[405301012,1770970246626,-1000.0,0.00016721,2]
[405301013,1770970246636,-1000.0,0.00016721,2]
[405301014,1770970246649,-1001.25973348,0.00016721,2]
[405301015,1770970246660,-1000.0,0.00016721,2]
[405301016,1770970246670,-503.16201801,0.00016721,2]
[405301017,1770970246681,-1000.0,0.00016721,2]
[405301018,1770970246691,-300.03626736,0.00016759,2]
[405301019,1770970246700,-722.32,0.00016772,2]
[405301020,1770970246710,-591.31,0.00016772,2]
[405301021,1770970246720,-1197.3,0.00016772,2]
[405301022,1770970246730,-1137.19,0.00016772,2]
[405301023,1770970246740,-1410.82,0.00016772,2]
[405301024,1770970246751,-891.17,0.00016772,2]
[405301025,1770970246761,-500.0,0.00016772,2]
[405301026,1770970246771,-500.0,0.00016772,2]
[405301027,1770970246781,-691.13,0.00016772,2]
[405301028,1770970246791,-500.0,0.00016772,2]
[405301029,1770970246801,-500.0,0.00016772,2]
[405301030,1770970246811,-500.0,0.00016772,2]
[405301031,1770970246821,-529.45,0.00016772,2]
[405301032,1770970246831,-1438.79,0.00016772,2]
[405301033,1770970246841,-500.0,0.00016772,2]
[405301034,1770970246851,-581.0,0.00016899,2]
[405301035,1770970246860,-500.0,0.00016899,2]
[405301036,1770970246870,-866.73,0.00016899,2]
[405301037,1770970246881,-500.0,0.00016899,2]
[405301038,1770970246891,-3500.0,0.0001696,2]
[405301039,1770970246901,-581.0,0.00016999,2]
[405301040,1770970246914,-581.0,0.00016999,2]
[405301041,1770970246924,-581.0,0.00016999,2]
[405301042,1770970246934,-581.0,0.00016999,2]
[405301043,1770970246944,-500.0,0.00016999,2]
[405301044,1770970246955,-500.0,0.00016999,2]
[405301045,1770970246965,-500.0,0.00016999,2]
[405301046,1770970246975,-500.0,0.00016999,2]
[405301047,1770970246986,-866.73,0.00016999,2]
[405301048,1770970246996,-866.73,0.00016999,2]
[405301049,1770970247008,-866.73,0.00016999,2]
[405301050,1770970247019,-866.73,0.00016999,2]
[405301051,1770970247028,-500.0,0.00016999,2]
[405301052,1770970247038,-500.0,0.00016999,2]
[405301053,1770970247047,-500.0,0.00016999,2]
[405301054,1770970247057,-500.0,0.00016999,2]
[405301055,1770970247067,-300.0,0.00017,2]
[405301056,1770970247078,-5968.0,0.00017021,2]
[405301057,1770970247088,-2450.0,0.00017021,2]
[405301058,1770970247097,-900.0,0.00017131,2]
[405301059,1770970247108,-1516.46648451,0.00017268,2]
[405301060,1770970247117,-1500.0,0.00017268,2]
[405301061,1770970247127,-1500.0,0.00017268,2]
[405301062,1770970247137,-1500.0,0.00017268,2]
[405301063,1770970247148,-1492.57355052,0.00017268,2]
[405301064,1770970247158,-504.47861685,0.00017268,2]
[405301065,1770970247168,-1170.51466036,0.00017268,2]
[405301066,1770970247178,-1511.15532906,0.00017268,2]
[405301067,1770970247188,-395.07222913,0.00017268,2]
[405301068,1770970247198,-1500.0,0.00017268,2]
[405301069,1770970247207,-1000.0,0.00017268,2]
[405301070,1770970247217,-501.69367829,0.00017268,2]
[405301071,1770970247227,-885.22876049,0.00017268,2]
[405301072,1770970247237,-1500.0,0.00017268,2]
[405301073,1770970247247,-1500.0,0.00017268,2]
[405301074,1770970247257,-530.73212688,0.00017268,2]
[405301075,1770970247268,-1500.0,0.00017268,2]
[405301076,1770970247277,-800.97860377,0.00017268,2]
[405301077,1770970247287,-350.0,0.00017354,2]
[405301078,1770970247297,-150.0,0.00017394,2]
[405301079,1770970247307,-150.0,0.00017394,2]
[405301080,1770970247317,-150.0,0.00017394,2]
[405301081,1770970247326,-1337.0,0.00017394,2]
[405301082,1770970247336,-3488.0,0.00017394,2]
[405301083,1770970247346,-1288.0,0.00017394,2]
[405301084,1770970247356,-1274.0,0.00017394,2]
[405301085,1770970247367,-150.0,0.00017394,2]
[405301086,1770970247376,-918.0,0.00017394,2]
[405301087,1770970247386,-1208.0,0.00017394,2]
[405301088,1770970247396,-947.61473378,0.00017508,2]
[405301089,1770970247407,-350.0,0.00017562,2]
[405301090,1770970247417,-350.0,0.00017602,2]
[405301091,1770970247427,-1498.0641666,0.0001764,2]
[405301092,1770970247438,-150.0,0.00017698,2]
[405301093,1770970247448,-300.0,0.000177,6]
[405301094,1770970247458,-481.89542729,0.00017743,2]
[405301095,1770970247468,-481.89542728,0.00017743,2]
[405301096,1770970247478,-200.0,0.00017753,2]
[405301097,1770970247488,-300.0,0.000178,6]
[405301098,1770970247499,-500.0,0.00017808,2]
[405301099,1770970247510,-590.083046,0.00017808,2]
[405301100,1770970247520,-590.083046,0.00017808,2]
[405301101,1770970247530,-590.083046,0.00017808,2]
[405301102,1770970247541,-590.083046,0.00017808,2]
[405301103,1770970247550,-590.083046,0.00017808,2]
[405301104,1770970247559,-590.083046,0.00017808,2]
[405301105,1770970247569,-590.083046,0.00017808,2]
[405301106,1770970247579,-590.083046,0.00017808,2]
[405301107,1770970247588,-590.083046,0.00017808,2]
[405301108,1770970247598,-590.083046,0.00017808,2]
[405301109,1770970247607,-800.0,0.00017808,2]
[405301110,1770970247618,-2000.0,0.00017816,2]
[405301111,1770970247627,-2000.0,0.00017816,2]
[405301112,1770970247637,-2000.0,0.00017816,2]
[405301113,1770970247646,-1503.05497251,0.00017816,2]
[405301114,1770970247656,-939.8305345,0.00017816,2]
[405301115,1770970247665,-2008.47777759,0.00017816,2]
[405301116,1770970247675,-1205.1081519,0.00017816,2]
[405301117,1770970247685,-500.0,0.00017863,2]
[405301118,1770970247694,-300.0,0.00017899,2]
[405301119,1770970247704,-300.0,0.000179,6]
[405301120,1770970247714,-195.53600731,0.000179,2]
[405301121,1770970247723,-6155.6818511,0.000179,2]
[405301122,1770970247733,-382.82623163,0.000179,2]